[Event "*** SCC Grand Prix: Titled Tuesday Blitz"]
[Site "Chess.com"]
[Date "2020.06.09"]
[Round "4"]
[White "Natalya_Buksa"]
[Black "amiralfio"]
[Result "1-0"]
[WhiteElo "2566"]
[BlackElo "2375"]
[TimeControl "180+1"]
[EndTime "9:42:22 PDT"]
[Termination "Natalya_Buksa won by checkmate"]

1. d4 {[%clk 0:03:00.9]} 1... Nf6 {[%clk 0:02:57.8]} 2. Nc3 {[%clk 0:03:01.2]}
2... g6 {[%clk 0:02:58.4]} 3. e4 {[%clk 0:03:00.4]} 3... d6 {[%clk 0:02:58.9]}
4. Bg5 {[%clk 0:03:00.7]} 4... Bg7 {[%clk 0:02:53]} 5. e5 {[%clk 0:03:00.6]}
5... Ng8 {[%clk 0:02:31.5]} 6. exd6 {[%clk 0:02:50.3]} 6... cxd6 {[%clk
0:02:27.7]} 7. Nf3 {[%clk 0:02:49.5]} 7... h6 {[%clk 0:02:19.5]} 8. Bf4 {[%clk
0:02:46.4]} 8... Nc6 {[%clk 0:02:19.1]} 9. Bb5 {[%clk 0:02:44.5]} 9... a6 {[%clk
0:02:08.5]} 10. Ba4 {[%clk 0:02:40.1]} 10... b5 {[%clk 0:02:06.8]} 11. Bb3
{[%clk 0:02:39.9]} 11... Nf6 {[%clk 0:02:05.3]} 12. Qd2 {[%clk 0:02:36.9]} 12...
Na5 {[%clk 0:01:53.2]} 13. O-O {[%clk 0:02:06.4]} 13... Bb7 {[%clk 0:01:48.1]}
14. d5 {[%clk 0:01:52]} 14... Rc8 {[%clk 0:01:35.9]} 15. a3 {[%clk 0:01:47.9]}
15... Nc4 {[%clk 0:01:18.1]} 16. Bxc4 {[%clk 0:01:45.9]} 16... Rxc4 {[%clk
0:01:18.9]} 17. Rfe1 {[%clk 0:01:36.4]} 17... Kf8 {[%clk 0:01:11.4]} 18. Be3
{[%clk 0:01:26.3]} 18... Rxc3 {[%clk 0:00:58.2]} 19. bxc3 {[%clk 0:01:25.5]}
19... Nxd5 {[%clk 0:00:53]} 20. Bd4 {[%clk 0:01:23.6]} 20... e5 {[%clk
0:00:46.5]} 21. Ba7 {[%clk 0:01:18.5]} 21... Bf6 {[%clk 0:00:31.6]} 22. a4
{[%clk 0:01:06.3]} 22... Kg7 {[%clk 0:00:28]} 23. axb5 {[%clk 0:01:06]} 23...
axb5 {[%clk 0:00:28.9]} 24. Rab1 {[%clk 0:00:45.7]} 24... Qa5 {[%clk 0:00:20.6]}
25. c4 {[%clk 0:00:45.7]} 25... Qxa7 {[%clk 0:00:07.6]} 26. cxd5 {[%clk
0:00:45.6]} 26... Qc5 {[%clk 0:00:08.1]} 27. Qd3 {[%clk 0:00:38.4]} 27... b4
{[%clk 0:00:04.4]} 28. Nd2 {[%clk 0:00:32.4]} 28... Rc8 {[%clk 0:00:04.1]} 29.
Ne4 {[%clk 0:00:22.7]} 29... Qxd5 {[%clk 0:00:04]} 30. Qxd5 {[%clk 0:00:09.6]}
30... Bxd5 {[%clk 0:00:04.9]} 31. Nxf6 {[%clk 0:00:05.1]} 31... Kxf6 {[%clk
0:00:05.8]} 32. Re2 {[%clk 0:00:04]} 32... Rc4 {[%clk 0:00:03.1]} 33. f3 {[%clk
0:00:03.9]} 33... Ke6 {[%clk 0:00:02.7]} 34. Kf2 {[%clk 0:00:04.2]} 34... h5
{[%clk 0:00:02]} 35. Rd2 {[%clk 0:00:04.5]} 35... Rc5 {[%clk 0:00:01.6]} 36.
Rxb4 {[%clk 0:00:04.2]} 36... h4 {[%clk 0:00:02]} 37. g3 {[%clk 0:00:03.1]}
37... hxg3+ {[%clk 0:00:01.8]} 38. hxg3 {[%clk 0:00:04]} 38... Bc6 {[%clk
0:00:02.5]} 39. Rb6 {[%clk 0:00:03.8]} 39... d5 {[%clk 0:00:02.7]} 40. Rb3
{[%clk 0:00:03.6]} 40... Kd6 {[%clk 0:00:03.2]} 41. Rb6 {[%clk 0:00:02.5]} 41...
Kc7 {[%clk 0:00:02.6]} 42. Rb3 {[%clk 0:00:02.9]} 42... d4 {[%clk 0:00:02.9]}
43. Ke2 {[%clk 0:00:03.2]} 43... Bb5+ {[%clk 0:00:02.7]} 44. Kf2 {[%clk
0:00:03.5]} 44... Bc4 {[%clk 0:00:03.6]} 45. Ra3 {[%clk 0:00:03.9]} 45... Kc6
{[%clk 0:00:04.1]} 46. Rd1 {[%clk 0:00:04.5]} 46... Be6 {[%clk 0:00:04.6]} 47.
c3 {[%clk 0:00:04.5]} 47... dxc3 {[%clk 0:00:04.4]} 48. Rc1 {[%clk 0:00:05.1]}
48... c2 {[%clk 0:00:04.3]} 49. Ke3 {[%clk 0:00:05.7]} 49... g5 {[%clk 0:00:02]}
50. Kd2 {[%clk 0:00:05.8]} 50... Bf5 {[%clk 0:00:02.3]} 51. g4 {[%clk
0:00:05.7]} 51... Bg6 {[%clk 0:00:02.7]} 52. Rc3 {[%clk 0:00:06.2]} 52... Rxc3
{[%clk 0:00:02.5]} 53. Kxc3 {[%clk 0:00:06.3]} 53... Kd5 {[%clk 0:00:03.4]} 54.
Kd2 {[%clk 0:00:06.6]} 54... Ke6 {[%clk 0:00:03]} 55. Re1 {[%clk 0:00:06.3]}
55... Kd5 {[%clk 0:00:03.3]} 56. Re3 {[%clk 0:00:06.1]} 56... Kd4 {[%clk
0:00:03.5]} 57. Ra3 {[%clk 0:00:06.3]} 57... Kc4 {[%clk 0:00:02.1]} 58. Ra4+
{[%clk 0:00:06.7]} 58... Kd5 {[%clk 0:00:02.4]} 59. Ra7 {[%clk 0:00:07]} 59...
Kd4 {[%clk 0:00:03.2]} 60. Ra4+ {[%clk 0:00:07]} 60... Kd5 {[%clk 0:00:03.4]}
61. Ra5+ {[%clk 0:00:07.3]} 61... Ke6 {[%clk 0:00:04.3]} 62. Ra6+ {[%clk
0:00:07.4]} 62... Ke7 {[%clk 0:00:05.1]} 63. Ra7+ {[%clk 0:00:07.8]} 63... Kf8
{[%clk 0:00:05.6]} 64. Ra5 {[%clk 0:00:08.1]} 64... Kg7 {[%clk 0:00:06.5]} 65.
Rxe5 {[%clk 0:00:07.6]} 65... Kf6 {[%clk 0:00:07]} 66. Ra5 {[%clk 0:00:07.5]}
66... Bh7 {[%clk 0:00:06.9]} 67. Rb5 {[%clk 0:00:06.6]} 67... Bg6 {[%clk
0:00:07.4]} 68. Rc5 {[%clk 0:00:06.3]} 68... Bh7 {[%clk 0:00:07]} 69. Ke3 {[%clk
0:00:06.6]} 69... Bg6 {[%clk 0:00:06.7]} 70. f4 {[%clk 0:00:06.9]} 70... gxf4+
{[%clk 0:00:06.6]} 71. Kxf4 {[%clk 0:00:07.8]} 71... Ke6 {[%clk 0:00:07.5]} 72.
Rc3 {[%clk 0:00:07.3]} 72... Kd5 {[%clk 0:00:07.7]} 73. Ke3 {[%clk 0:00:07.5]}
73... Ke5 {[%clk 0:00:07.7]} 74. Rc5+ {[%clk 0:00:07.6]} 74... Kd6 {[%clk
0:00:08]} 75. Kd4 {[%clk 0:00:08]} 75... Ke6 {[%clk 0:00:08.5]} 76. Rc3 {[%clk
0:00:08]} 76... Kf6 {[%clk 0:00:07.8]} 77. Rc5 {[%clk 0:00:08.3]} 77... Ke6
{[%clk 0:00:05.9]} 78. Ke3 {[%clk 0:00:08.3]} 78... Kf6 {[%clk 0:00:06.1]} 79.
Kd2 {[%clk 0:00:04.8]} 79... Ke6 {[%clk 0:00:06.2]} 80. Ra5 {[%clk 0:00:03.9]}
80... Kf6 {[%clk 0:00:06]} 81. Rc5 {[%clk 0:00:04.1]} 81... Ke6 {[%clk
0:00:06.3]} 82. Ra5 {[%clk 0:00:03.6]} 82... Kd6 {[%clk 0:00:06.5]} 83. g5
{[%clk 0:00:03]} 83... Ke6 {[%clk 0:00:06.4]} 84. Rb5 {[%clk 0:00:03.3]} 84...
Ke7 {[%clk 0:00:06.5]} 85. Rc5 {[%clk 0:00:03.6]} 85... Kf8 {[%clk 0:00:06.8]}
86. Ke3 {[%clk 0:00:03.8]} 86... Kg7 {[%clk 0:00:07.7]} 87. Kf4 {[%clk
0:00:04.1]} 87... Kg8 {[%clk 0:00:08]} 88. Rc8+ {[%clk 0:00:04.5]} 88... Kg7
{[%clk 0:00:08.3]} 89. Ke5 {[%clk 0:00:05]} 89... Bd3 {[%clk 0:00:08.5]} 90. Rc6
{[%clk 0:00:05.2]} 90... Bg6 {[%clk 0:00:08.4]} 91. Rc7 {[%clk 0:00:05.1]} 91...
Bd3 {[%clk 0:00:05]} 92. Rc3 {[%clk 0:00:05.1]} 92... Kg8 {[%clk 0:00:03.5]} 93.
Kf6 {[%clk 0:00:04.4]} 93... Bg6 {[%clk 0:00:03.6]} 94. Rc8+ {[%clk 0:00:04.1]}
94... Kh7 {[%clk 0:00:04.1]} 95. Rc4 {[%clk 0:00:04.4]} 95... Kg8 {[%clk
0:00:03.9]} 96. Rc3 {[%clk 0:00:04.6]} 96... Kf8 {[%clk 0:00:02.4]} 97. Rc8#
{[%clk 0:00:04.4]} 1-0

[Event "*** SCC Grand Prix: Titled Tuesday Blitz"]
[Site "Chess.com"]
[Date "2020.06.09"]
[Round "4"]
[White "StephenDedalus83"]
[Black "fm24601"]
[Result "1-0"]
[WhiteElo "2747"]
[BlackElo "2539"]
[TimeControl "180+1"]
[EndTime "9:43:19 PDT"]
[Termination "StephenDedalus83 won on time"]

1. e4 {[%clk 0:03:00.9]} 1... e5 {[%clk 0:02:59.7]} 2. Nf3 {[%clk 0:03:00.7]}
2... Nc6 {[%clk 0:02:58.5]} 3. Bb5 {[%clk 0:03:00.6]} 3... a6 {[%clk 0:02:58.7]}
4. Ba4 {[%clk 0:03:01]} 4... Nf6 {[%clk 0:02:59.2]} 5. O-O {[%clk 0:03:01.4]}
5... Be7 {[%clk 0:02:59.7]} 6. Re1 {[%clk 0:03:01.4]} 6... b5 {[%clk 0:03:00.2]}
7. Bb3 {[%clk 0:03:02]} 7... d6 {[%clk 0:03:00.7]} 8. c3 {[%clk 0:03:01.7]} 8...
O-O {[%clk 0:03:01.2]} 9. h3 {[%clk 0:03:01.8]} 9... Na5 {[%clk 0:03:01.3]} 10.
Bc2 {[%clk 0:03:01.5]} 10... c5 {[%clk 0:03:02]} 11. d4 {[%clk 0:03:01.8]} 11...
Qc7 {[%clk 0:03:02.4]} 12. Nbd2 {[%clk 0:03:01.3]} 12... Nc6 {[%clk 0:03:02.9]}
13. d5 {[%clk 0:02:59.5]} 13... Nd8 {[%clk 0:03:03.2]} 14. a4 {[%clk 0:02:58.6]}
14... Rb8 {[%clk 0:03:03.5]} 15. axb5 {[%clk 0:02:58.5]} 15... axb5 {[%clk
0:03:04.4]} 16. b4 {[%clk 0:02:58.5]} 16... Ne8 {[%clk 0:03:04.6]} 17. Nf1
{[%clk 0:02:57.9]} 17... g6 {[%clk 0:03:04.5]} 18. g4 {[%clk 0:02:52.3]} 18...
f6 {[%clk 0:03:04.6]} 19. Ng3 {[%clk 0:02:52]} 19... Nf7 {[%clk 0:03:04.3]} 20.
Be3 {[%clk 0:02:51.5]} 20... Ng7 {[%clk 0:03:04.2]} 21. Kh2 {[%clk 0:02:48.4]}
21... Bd7 {[%clk 0:03:03.8]} 22. Qe2 {[%clk 0:02:45.7]} 22... Qc8 {[%clk
0:03:02.3]} 23. Bd3 {[%clk 0:02:30.5]} 23... Bd8 {[%clk 0:02:53.9]} 24. Ra3
{[%clk 0:02:22.8]} 24... c4 {[%clk 0:01:52.2]} 25. Bc2 {[%clk 0:02:21.7]} 25...
Bb6 {[%clk 0:01:51.6]} 26. Bxb6 {[%clk 0:02:18.5]} 26... Rxb6 {[%clk 0:01:52.5]}
27. Rea1 {[%clk 0:02:18.7]} 27... Qc7 {[%clk 0:01:42.6]} 28. Nd2 {[%clk
0:02:13.6]} 28... Rbb8 {[%clk 0:01:15.3]} 29. Qe3 {[%clk 0:02:13.1]} 29... Bc8
{[%clk 0:00:54.2]} 30. Ra7 {[%clk 0:02:10.5]} 30... Rb7 {[%clk 0:00:53.8]} 31.
Ra8 {[%clk 0:02:09.3]} 31... Bd7 {[%clk 0:00:48.6]} 32. R8a6 {[%clk 0:02:07.7]}
32... Rfb8 {[%clk 0:00:47.4]} 33. Ne2 {[%clk 0:02:03.4]} 33... Qc8 {[%clk
0:00:46.6]} 34. f4 {[%clk 0:01:59.4]} 34... Ne8 {[%clk 0:00:45.8]} 35. f5 {[%clk
0:01:58.1]} 35... g5 {[%clk 0:00:41.9]} 36. Ng3 {[%clk 0:01:53.9]} 36... Nc7
{[%clk 0:00:36.5]} 37. R6a5 {[%clk 0:01:52.5]} 37... Ne8 {[%clk 0:00:32.6]} 38.
Nf3 {[%clk 0:01:50.9]} 38... h6 {[%clk 0:00:32.3]} 39. h4 {[%clk 0:01:49.8]}
39... Qc7 {[%clk 0:00:31.8]} 40. Nh5 {[%clk 0:01:48.6]} 40... Qb6 {[%clk
0:00:30.9]} 41. Qd2 {[%clk 0:01:45.2]} 41... Qd8 {[%clk 0:00:29.8]} 42. Kg2
{[%clk 0:01:40.6]} 42... Kf8 {[%clk 0:00:26.3]} 43. Bd1 {[%clk 0:01:31.3]} 43...
Qb6 {[%clk 0:00:24.6]} 44. Bc2 {[%clk 0:01:29.2]} 44... Qd8 {[%clk 0:00:24.2]}
45. Ra6 {[%clk 0:01:27.9]} 45... Nc7 {[%clk 0:00:23.2]} 46. R6a2 {[%clk
0:01:24.6]} 46... Ne8 {[%clk 0:00:23.2]} 47. hxg5 {[%clk 0:01:20.2]} 47... hxg5
{[%clk 0:00:22.7]} 48. Qf2 {[%clk 0:01:11.4]} 48... Qb6 {[%clk 0:00:22]} 49. Qe1
{[%clk 0:01:10.9]} 49... Nh6 {[%clk 0:00:21.3]} 50. Kg3 {[%clk 0:01:09.4]} 50...
Qd8 {[%clk 0:00:20.1]} 51. Qh1 {[%clk 0:01:07]} 51... Nf7 {[%clk 0:00:18.7]} 52.
Kf2 {[%clk 0:01:06.6]} 52... Qb6+ {[%clk 0:00:18.5]} 53. Ke2 {[%clk 0:01:06.5]}
53... Rc8 {[%clk 0:00:16.8]} 54. Qh3 {[%clk 0:01:06.2]} 54... Rbb8 {[%clk
0:00:14.7]} 55. Ra6 {[%clk 0:01:04.9]} 55... Qd8 {[%clk 0:00:14.3]} 56. Ng3
{[%clk 0:01:02.6]} 56... Ra8 {[%clk 0:00:13.6]} 57. Rxa8 {[%clk 0:00:50.9]}
57... Rxa8 {[%clk 0:00:14.5]} 58. Rh1 {[%clk 0:00:50.3]} 58... Ra2 {[%clk
0:00:13.7]} 59. Kd2 {[%clk 0:00:49.5]} 59... Qa8 {[%clk 0:00:14.1]} 60. Ne1
{[%clk 0:00:45.4]} 60... Ra1 {[%clk 0:00:13.4]} 61. Qh7 {[%clk 0:00:42.5]} 61...
Qa3 {[%clk 0:00:12.5]} 62. Ne2 {[%clk 0:00:42.2]} 62... Qa7 {[%clk 0:00:10.5]}
63. Qh2 {[%clk 0:00:36.8]} 63... Ke7 {[%clk 0:00:09.3]} 64. Qg3 {[%clk
0:00:36.1]} 64... Nc7 {[%clk 0:00:06.9]} 65. Rh7 {[%clk 0:00:35.8]} 65... Qa3
{[%clk 0:00:04]} 66. Qh2 {[%clk 0:00:32]} 66... Be8 {[%clk 0:00:04]} 67. Qf2
{[%clk 0:00:29.7]} 67... Qa7 {[%clk 0:00:03.4]} 68. Qg3 {[%clk 0:00:28.7]} 68...
Qb6 {[%clk 0:00:02.9]} 69. Qh2 {[%clk 0:00:27]} 69... Qa7 {[%clk 0:00:03.4]} 70.
Rg7 {[%clk 0:00:25.3]} 70... Qb6 {[%clk 0:00:02.7]} 71. Rg8 {[%clk 0:00:24.9]}
71... Qb8 {[%clk 0:00:02.9]} 72. Qh7 {[%clk 0:00:23.3]} 72... Qc8 {[%clk
0:00:03.2]} 73. Qg7 {[%clk 0:00:22.3]} 73... Qd7 {[%clk 0:00:03]} 74. Qf8+
{[%clk 0:00:22.1]} 74... Kd8 {[%clk 0:00:02.8]} 75. Rg6 {[%clk 0:00:22]} 75...
Qe7 {[%clk 0:00:03.3]} 76. Qg7 {[%clk 0:00:21.9]} 76... Kd7 {[%clk 0:00:03.6]}
77. Rxf6 {[%clk 0:00:20.3]} 77... Ra8 {[%clk 0:00:04.5]} 78. Re6 {[%clk
0:00:20]} 78... Nxe6 {[%clk 0:00:04.6]} 79. dxe6+ {[%clk 0:00:18.4]} 79... Kc6
{[%clk 0:00:05.5]} 80. exf7 {[%clk 0:00:18.1]} 80... Qxf7 {[%clk 0:00:06.4]} 81.
Qxf7 {[%clk 0:00:17.1]} 81... Bxf7 {[%clk 0:00:07.3]} 82. Nf3 {[%clk 0:00:17.2]}
82... Rh8 {[%clk 0:00:08.2]} 83. Nxg5 {[%clk 0:00:16.1]} 83... Be8 {[%clk
0:00:09.1]} 84. Ne6 {[%clk 0:00:15.5]} 84... Rh2 {[%clk 0:00:07.9]} 85. g5
{[%clk 0:00:15.3]} 85... Bh5 {[%clk 0:00:07.4]} 86. Bd1 {[%clk 0:00:15.2]} 86...
Kd7 {[%clk 0:00:07.2]} 87. g6 {[%clk 0:00:14.6]} 87... Ke7 {[%clk 0:00:06.8]}
88. Nc7 {[%clk 0:00:14.6]} 88... Bf3 {[%clk 0:00:03.6]} 89. Nxb5 {[%clk
0:00:13.4]} 89... Bxe4 {[%clk 0:00:03.3]} 90. f6+ {[%clk 0:00:13.5]} 90... Kxf6
{[%clk 0:00:03.4]} 91. Nxd6 {[%clk 0:00:13.5]} 91... Bxg6 {[%clk 0:00:04.3]} 92.
Nxc4 {[%clk 0:00:12.9]} 92... Ke6 {[%clk 0:00:05.2]} 93. Ne3 {[%clk 0:00:12.7]}
93... Rh8 {[%clk 0:00:05]} 94. Bb3+ {[%clk 0:00:12.6]} 94... Kd6 {[%clk
0:00:04.9]} 95. Ng3 {[%clk 0:00:12.1]} 95... Rd8 {[%clk 0:00:04.9]} 96. Nd5
{[%clk 0:00:10.5]} 96... Kc6 {[%clk 0:00:04.8]} 97. c4 {[%clk 0:00:10.5]} 97...
Bf7 {[%clk 0:00:05.3]} 98. Ke3 {[%clk 0:00:10.4]} 98... Rg8 {[%clk 0:00:05.7]}
99. Ne4 {[%clk 0:00:09.6]} 99... Rh8 {[%clk 0:00:05.5]} 100. b5+ {[%clk
0:00:09.6]} 100... Kb7 {[%clk 0:00:04.6]} 101. Kd2 {[%clk 0:00:08.2]} 101...
Rh2+ {[%clk 0:00:04.7]} 102. Kc3 {[%clk 0:00:07.7]} 102... Rh4 {[%clk
0:00:05.4]} 103. Nd6+ {[%clk 0:00:06.7]} 103... Kb8 {[%clk 0:00:03.7]} 104. Nxf7
{[%clk 0:00:07.6]} 104... e4 {[%clk 0:00:04.3]} 105. Kd4 {[%clk 0:00:07.3]}
105... Rh3 {[%clk 0:00:04.3]} 106. Bc2 {[%clk 0:00:06.5]} 106... Rf3 {[%clk
0:00:04.3]} 107. Ne5 {[%clk 0:00:04.7]} 107... Rf2 {[%clk 0:00:04.7]} 108. Bxe4
{[%clk 0:00:04.4]} 108... Rd2+ {[%clk 0:00:05.6]} 109. Nd3 {[%clk 0:00:04.8]}
109... Rh2 {[%clk 0:00:06.5]} 110. c5 {[%clk 0:00:05.3]} 110... Rh5 {[%clk
0:00:06.6]} 111. b6 {[%clk 0:00:06.2]} 111... Rh6 {[%clk 0:00:06.9]} 112. N5b4
{[%clk 0:00:05.4]} 112... Rh8 {[%clk 0:00:03.6]} 113. Na6+ {[%clk 0:00:05.2]}
113... Kc8 {[%clk 0:00:03.6]} 114. b7+ {[%clk 0:00:06.1]} 114... Kd7 {[%clk
0:00:04.3]} 115. b8=Q {[%clk 0:00:06.2]} 1-0

[Event "*** SCC Grand Prix: Titled Tuesday Blitz"]
[Site "Chess.com"]
[Date "2020.06.09"]
[Round "5"]
[White "Grandmaster2B"]
[Black "gross-aleks"]
[Result "1-0"]
[WhiteElo "2442"]
[BlackElo "2583"]
[TimeControl "180+1"]
[EndTime "9:50:49 PDT"]
[Termination "Grandmaster2B won by resignation"]

1. e4 {[%clk 0:03:00.9]} 1... e5 {[%clk 0:02:58.5]} 2. Nf3 {[%clk 0:03:00.9]}
2... Nc6 {[%clk 0:02:58.2]} 3. Bb5 {[%clk 0:03:01.2]} 3... Nf6 {[%clk
0:02:56.3]} 4. O-O {[%clk 0:03:00.9]} 4... Nxe4 {[%clk 0:02:56.3]} 5. Re1 {[%clk
0:03:01]} 5... Nd6 {[%clk 0:02:56.3]} 6. Nxe5 {[%clk 0:03:01.3]} 6... Nxe5
{[%clk 0:02:54.5]} 7. Rxe5+ {[%clk 0:03:02.2]} 7... Be7 {[%clk 0:02:54.4]} 8.
Bf1 {[%clk 0:03:02.5]} 8... O-O {[%clk 0:02:53.9]} 9. d4 {[%clk 0:03:02.9]} 9...
Bf6 {[%clk 0:02:52.5]} 10. Re1 {[%clk 0:03:03.2]} 10... Nf5 {[%clk 0:02:51.3]}
11. c3 {[%clk 0:03:03.4]} 11... d5 {[%clk 0:02:51.3]} 12. Bd3 {[%clk 0:03:03.2]}
12... Nd6 {[%clk 0:02:49.7]} 13. Bf4 {[%clk 0:03:01.6]} 13... c6 {[%clk
0:02:46.2]} 14. Nd2 {[%clk 0:03:01.6]} 14... Re8 {[%clk 0:02:43.8]} 15. Bxd6
{[%clk 0:02:43]} 15... Rxe1+ {[%clk 0:02:42.3]} 16. Qxe1 {[%clk 0:02:43.9]}
16... Qxd6 {[%clk 0:02:42.4]} 17. Qe8+ {[%clk 0:02:44.4]} 17... Qf8 {[%clk
0:02:42.4]} 18. Bxh7+ {[%clk 0:02:45.1]} 1-0

[Event "*** SCC Grand Prix: Titled Tuesday Blitz"]
[Site "Chess.com"]
[Date "2020.06.09"]
[Round "5"]
[White "MarceloPlaya"]
[Black "Oligan22"]
[Result "0-1"]
[WhiteElo "2236"]
[BlackElo "2405"]
[TimeControl "180+1"]
[EndTime "9:51:33 PDT"]
[Termination "Oligan22 won by checkmate"]

1. e4 {[%clk 0:03:00.9]} 1... c6 {[%clk 0:02:55.7]} 2. d4 {[%clk 0:03:00.1]}
2... d5 {[%clk 0:02:55.6]} 3. e5 {[%clk 0:02:56.9]} 3... Bf5 {[%clk 0:02:55.5]}
4. g4 {[%clk 0:02:56.6]} 4... Be4 {[%clk 0:02:53.5]} 5. f3 {[%clk 0:02:56]} 5...
Bg6 {[%clk 0:02:53.6]} 6. h4 {[%clk 0:02:56]} 6... h5 {[%clk 0:02:53.8]} 7. e6
{[%clk 0:02:55.7]} 7... Qd6 {[%clk 0:02:53.9]} 8. exf7+ {[%clk 0:02:52.7]} 8...
Bxf7 {[%clk 0:02:53.2]} 9. Ne2 {[%clk 0:02:52.6]} 9... Nd7 {[%clk 0:02:53]} 10.
Bf4 {[%clk 0:02:48.8]} 10... e5 {[%clk 0:02:53.1]} 11. dxe5 {[%clk 0:02:45.6]}
11... Nxe5 {[%clk 0:02:54]} 12. Nd2 {[%clk 0:02:22.9]} 12... O-O-O {[%clk
0:02:50.2]} 13. g5 {[%clk 0:02:16.1]} 13... Ne7 {[%clk 0:02:22.5]} 14. c3 {[%clk
0:02:12.2]} 14... Nd3# {[%clk 0:02:18.4]} 0-1

[Event "*** SCC Grand Prix: Titled Tuesday Blitz"]
[Site "Chess.com"]
[Date "2020.06.09"]
[Round "5"]
[White "SoltaniciR"]
[Black "amiralfio"]
[Result "1-0"]
[WhiteElo "2494"]
[BlackElo "2370"]
[TimeControl "180+1"]
[EndTime "9:53:10 PDT"]
[Termination "SoltaniciR won by resignation"]

1. e4 {[%clk 0:03:00.9]} 1... c5 {[%clk 0:02:49]} 2. Nf3 {[%clk 0:02:59.9]} 2...
e6 {[%clk 0:02:47.4]} 3. d4 {[%clk 0:02:59.7]} 3... cxd4 {[%clk 0:02:47.3]} 4.
Nxd4 {[%clk 0:03:00.6]} 4... Nf6 {[%clk 0:02:44.4]} 5. Nc3 {[%clk 0:03:00.5]}
5... d6 {[%clk 0:02:27.1]} 6. Be3 {[%clk 0:02:59.4]} 6... a6 {[%clk 0:02:19.5]}
7. f3 {[%clk 0:02:59.3]} 7... b5 {[%clk 0:02:17.2]} 8. Qd2 {[%clk 0:02:59.4]}
8... Nbd7 {[%clk 0:02:14.1]} 9. g4 {[%clk 0:02:58.4]} 9... h6 {[%clk 0:02:06.1]}
10. O-O-O {[%clk 0:02:57.3]} 10... Be7 {[%clk 0:01:54.2]} 11. h4 {[%clk
0:02:56.6]} 11... Bb7 {[%clk 0:01:51.6]} 12. Bd3 {[%clk 0:02:52]} 12... Nc5
{[%clk 0:01:48.5]} 13. g5 {[%clk 0:02:48.5]} 13... Nfd7 {[%clk 0:01:05.2]} 14.
Kb1 {[%clk 0:02:25.5]} 14... g6 {[%clk 0:00:56.4]} 15. h5 {[%clk 0:02:17.7]}
15... Bxg5 {[%clk 0:00:48.3]} 16. hxg6 {[%clk 0:02:17.4]} 16... fxg6 {[%clk
0:00:47]} 17. Bxg5 {[%clk 0:02:16.2]} 1-0

[Event "*** SCC Grand Prix: Titled Tuesday Blitz"]
[Site "Chess.com"]
[Date "2020.06.09"]
[Round "5"]
[White "SantoBlue"]
[Black "Kildepiotr"]
[Result "1-0"]
[WhiteElo "2796"]
[BlackElo "2605"]
[TimeControl "180+1"]
[EndTime "9:53:24 PDT"]
[Termination "SantoBlue won by resignation"]

1. e4 {[%clk 0:02:59.9]} 1... e6 {[%clk 0:02:59.7]} 2. d4 {[%clk 0:02:59.8]}
2... d5 {[%clk 0:02:59.8]} 3. Nd2 {[%clk 0:03:00.4]} 3... dxe4 {[%clk
0:02:57.2]} 4. Nxe4 {[%clk 0:03:00.5]} 4... Bd7 {[%clk 0:02:57.8]} 5. c4 {[%clk
0:03:00.1]} 5... Bc6 {[%clk 0:02:58.3]} 6. Nc3 {[%clk 0:03:00.2]} 6... Nf6
{[%clk 0:02:57.7]} 7. Nf3 {[%clk 0:03:00.2]} 7... b6 {[%clk 0:02:50.7]} 8. Ne5
{[%clk 0:02:59.3]} 8... Bb7 {[%clk 0:02:50.1]} 9. Be2 {[%clk 0:02:57.9]} 9...
Nbd7 {[%clk 0:02:47.4]} 10. Bf3 {[%clk 0:02:56.4]} 10... Bxf3 {[%clk 0:02:44.7]}
11. Qxf3 {[%clk 0:02:57.3]} 11... Nxe5 {[%clk 0:02:41.2]} 12. dxe5 {[%clk
0:02:58.2]} 12... Nd7 {[%clk 0:02:40.9]} 13. Qc6 {[%clk 0:02:53.4]} 13... Bb4
{[%clk 0:02:35.7]} 14. Bg5 {[%clk 0:02:48.6]} 14... Be7 {[%clk 0:02:03.7]} 15.
Bxe7 {[%clk 0:02:38.1]} 15... Kxe7 {[%clk 0:02:04.6]} 16. O-O-O {[%clk 0:02:37]}
16... Qc8 {[%clk 0:02:03.6]} 17. Qe4 {[%clk 0:02:20.2]} 17... Nf8 {[%clk
0:01:45.2]} 18. Rd2 {[%clk 0:02:00.6]} 18... Ng6 {[%clk 0:01:41.8]} 19. Rhd1
{[%clk 0:02:00.8]} 19... Re8 {[%clk 0:01:40.3]} 20. h4 {[%clk 0:01:53.5]} 20...
h5 {[%clk 0:01:34.9]} 21. g4 {[%clk 0:01:53.4]} 21... Kf8 {[%clk 0:01:26.1]} 22.
gxh5 {[%clk 0:01:50.8]} 22... Ne7 {[%clk 0:01:26.2]} 23. h6 {[%clk 0:01:48]}
23... gxh6 {[%clk 0:01:25.6]} 24. Qh7 {[%clk 0:01:48.2]} 24... Nf5 {[%clk
0:01:25.4]} 25. Rd7 {[%clk 0:01:48.2]} 1-0

[Event "*** SCC Grand Prix: Titled Tuesday Blitz"]
[Site "Chess.com"]
[Date "2020.06.09"]
[Round "5"]
[White "2L8IWUN"]
[Black "Evgeny81"]
[Result "0-1"]
[WhiteElo "2553"]
[BlackElo "2754"]
[TimeControl "180+1"]
[EndTime "9:54:10 PDT"]
[Termination "Evgeny81 won by resignation"]

1. e4 {[%clk 0:03:00.9]} 1... e5 {[%clk 0:02:59.2]} 2. Bc4 {[%clk 0:03:00.2]}
2... Nc6 {[%clk 0:02:59]} 3. d4 {[%clk 0:03:00.7]} 3... Nxd4 {[%clk 0:02:51.4]}
4. Nf3 {[%clk 0:02:50.2]} 4... Nxf3+ {[%clk 0:02:46.7]} 5. Qxf3 {[%clk
0:02:51.1]} 5... Nf6 {[%clk 0:02:46.7]} 6. Qb3 {[%clk 0:02:37.4]} 6... Qe7
{[%clk 0:02:46.1]} 7. Nc3 {[%clk 0:02:35.8]} 7... d6 {[%clk 0:02:41.9]} 8. O-O
{[%clk 0:02:32.5]} 8... c6 {[%clk 0:02:36.1]} 9. a4 {[%clk 0:02:29]} 9... Be6
{[%clk 0:02:35]} 10. Bxe6 {[%clk 0:02:25.7]} 10... fxe6 {[%clk 0:02:35.9]} 11.
Bg5 {[%clk 0:02:20.7]} 11... Qf7 {[%clk 0:02:16.6]} 12. f4 {[%clk 0:02:13.8]}
12... exf4 {[%clk 0:02:17.5]} 13. Rxf4 {[%clk 0:02:12.4]} 13... e5 {[%clk
0:02:17.1]} 14. Qxf7+ {[%clk 0:02:09.8]} 14... Kxf7 {[%clk 0:02:18]} 15. Rf3
{[%clk 0:02:10]} 15... Be7 {[%clk 0:02:14.6]} 16. Rd1 {[%clk 0:02:05.7]} 16...
Ke6 {[%clk 0:02:10.9]} 17. Rfd3 {[%clk 0:02:04]} 17... Rad8 {[%clk 0:02:08.8]}
18. h3 {[%clk 0:01:59.8]} 18... Rd7 {[%clk 0:02:02.9]} 19. a5 {[%clk 0:01:53.6]}
19... Rhd8 {[%clk 0:01:46.3]} 20. a6 {[%clk 0:01:47]} 20... b5 {[%clk
0:01:42.6]} 21. Bh4 {[%clk 0:01:42.6]} 21... b4 {[%clk 0:01:32.3]} 22. Bxf6
{[%clk 0:01:40.2]} 22... gxf6 {[%clk 0:01:28.3]} 23. Ne2 {[%clk 0:01:38.1]}
23... d5 {[%clk 0:01:27.7]} 24. Ng3 {[%clk 0:01:33.4]} 24... dxe4 {[%clk
0:01:18.5]} 25. Rxd7 {[%clk 0:01:34.3]} 25... Rxd7 {[%clk 0:01:19]} 26. Rf1
{[%clk 0:01:23.9]} 26... e3 {[%clk 0:01:13.3]} 27. Nf5 {[%clk 0:01:16.6]} 27...
e2 {[%clk 0:01:08]} 0-1